[Event "Chinese League Div-A Rapid 2022"]
[Site "Fuling,Chongqing"]
[Date "2022.09.12"]
[Round "6.26"]
[White "Peng, Hongchi"]
[Black "Xue, Haowen"]
[Result "1-0"]
[ECO "D30"]
[WhiteElo "2375"]
[BlackElo "2128"]
[Annotator "TA"]
[PlyCount "139"]
[EventDate "2022.09.07"]
[EventType "team-tourn"]
[EventCountry "CHN"]
[SourceTitle "playchess.com"]
[Source "ChessBase"]
[SourceQuality "1"]
[TimeControl "1500+10"]

{[%evp 9,139,-17,12,14,53,4,6,-7,-7,-7,-7,-7,-7,-7,-14,-10,-10,-10,51,-27,7,0,27,0,9,14,45,17,16,13,20,0,20,-81,-82,-73,-82,-80,-51,-58,-50,-56,-46,-63,0,-156,-83,-184,-178,-302,-302,-369,-369,-425,-237,-240,-226,-268,-268,-226,-109,-114,-125,-114,-4,-37,-23,-45,0,0,0,0,0,-63,0,0,12,0,0,0,0,0,75,99,360,460,255,264,29989,29990,29990,405,413,0,29990,29991,29991,29992,29992,29980,29995,29994,29996,29964,8783,5734,1722,1720,29967,29968,29967,29966,29971,29971,29971,29971,29970,29971,29971,29971,29971,29972,29977,29977,29975,29974,29985,29986,29986,29987,29993,29994]} 1. d4 {[%emt 0:00:02]} Nf6 {[%emt 0:00:01]} 2. c4 {[%emt 0:00:04]} e6 {[%emt 0:00:02]} 3. Nf3 {[%emt 0:00:02]} d5 {[%emt 0:00:04]} 4. Qc2 {[%emt 0:00:16]} Nbd7 {[%emt 0:01:05]} 5. Bf4 {[%emt 0:00:06] [#]} Bb4+ $146 {[%emt 0:01:05]} ({Predecessor:} 5... c5 6. dxc5 Bxc5 7. e3 a6 8. Nbd2 dxc4 9. Bxc4 b5 10. Be2 Bb7 11. O-O Rc8 12. Qd1 {0-1 (57) Peng,H (2256)-Chen,Q (2412) Jiangmen 2018}) 6. Nbd2 {[%emt 0:00:15] D30: Queen's Gambit Declined: Systems without Nc3.} O-O {[%emt 0:00:21]} 7. e3 {[%emt 0:00:04]} (7. cxd5 $14 {is superior.} Nxd5 8. Bg3) 7... c5 $11 {[%emt 0:00:37]} 8. a3 {[%emt 0:01:35] The position is equal.} Bxd2+ {[%emt 0:00:13]} 9. Qxd2 {[%emt 0:00:06]} Ne4 {[%emt 0:00:37]} 10. Qc2 {[%emt 0:00:21]} Qa5+ {[%emt 0:01:21]} 11. Nd2 $1 {[%emt 0:00:05]} Nxd2 {[%emt 0:01:38]} (11... Qxd2+ {is more complex.} 12. Qxd2 Nxd2 13. Kxd2 cxd4 14. exd4 dxc4 15. Bxc4 Nb6) 12. Qxd2 {[%emt 0:00:02]} Qxd2+ {[%emt 0:00:01]} 13. Kxd2 {[%emt 0:00:01]} dxc4 {[%emt 0:00:45]} (13... cxd4 $11 14. exd4 dxc4) 14. dxc5 {[%emt 0:01:00]} (14. Bd6 $1 $14) 14... Nxc5 {[%emt 0:00:04] Threatens to win with ...Nb3+.} 15. Bxc4 {[%emt 0:00:10]} b5 {[%emt 0:00:09]} 16. Ba2 {[%emt 0:00:09]} Bb7 {[%emt 0:00:54]} 17. f3 {[%emt 0:03:11]} Rac8 {[%emt 0:04:39]} 18. Rhd1 {[%emt 0:02:19]} (18. e4 {is interesting.} Na4 19. Be5 Nb6 20. Rac1) 18... Bd5 {[%emt 0:04:19]} 19. Bxd5 {[%emt 0:00:33]} exd5 {[%emt 0:00:02]} 20. Rab1 {[%emt 0:03:15]} Nb3+ {[%emt 0:01:10]} 21. Kd3 {[%emt 0:00:12]} (21. Ke1 $11) 21... Rfe8 $17 {[%emt 0:01:17]} 22. Bg3 {[%emt 0:00:31]} Rc4 {[%emt 0:02:23]} 23. Be1 {[%emt 0:01:14]} a5 {[%emt 0:00:49]} 24. Bc3 {[%emt 0:00:55]} b4 {[%emt 0:00:37]} 25. axb4 {[%emt 0:00:24]} axb4 {[%emt 0:00:01]} 26. Be1 {[%emt 0:00:53]} f5 {[%emt 0:02:05]} (26... h6 $15) 27. Bf2 $2 {[%emt 0:01:50]} (27. Ke2 $11) 27... Kf7 {[%emt 0:00:26]} (27... Rec8 $142 {And now ...Rc2 would win.} 28. Ke2 d4) 28. h3 {[%emt 0:05:45]} (28. e4 $17) 28... Rec8 $1 $19 {[%emt 0:01:09]} 29. g4 {[%emt 0:02:44]} (29. Ke2 $142) 29... Rc2 {[%emt 0:00:38]} 30. Be1 {[%emt 0:00:09]} Nc1+ {[%emt 0:00:41]} (30... fxg4 $2 31. hxg4 R8c4 32. e4 $19) 31. Kd4 {[%emt 0:00:06]} Ke6 {[%emt 0:00:10]} (31... fxg4 $142 {...Ke6 is the strong threat.} 32. Ke5 gxf3) 32. gxf5+ {[%emt 0:00:10]} Kxf5 {[%emt 0:00:03]} 33. e4+ {[%emt 0:00:15]} dxe4 {[%emt 0:00:42]} 34. fxe4+ {[%emt 0:01:04]} Kf4 {[%emt 0:00:12]} (34... Ke6 $1 $19 {has better winning chances. Hoping for ...Rd8+.} 35. Bh4 (35. Ke3 $2 Re2+ 36. Kf4 Rf8+ 37. Kg3 Re3+ 38. Kg2 Nd3 $19) 35... R8c7) 35. Bh4 $17 {[%emt 0:00:50] Against Rd8+. Rf1+ would kill now.} ({Avoid the trap} 35. Bd2+ $2 Rxd2+ $1 {[%mdl 512]} 36. Rxd2 Nb3+ 37. Kd3 Rd8+ 38. Kc2 Nxd2 $19) 35... Nb3+ {[%emt 0:00:28]} 36. Kd3 {[%emt 0:00:04]} Ke5 {[%emt 0:00:11]} ({Better is} 36... R8c4 $1 $17 {[%cal Rb3c5]} 37. Rf1+ Ke5 38. Bg3+ Ke6) 37. Bg3+ {[%emt 0:00:11]} Ke6 {[%emt 0:00:02]} 38. Ke3 {[%emt 0:00:05]} R8c6 {[%emt 0:00:11]} (38... Na5 $5 {[%cal Ra5c4]} 39. Rd6+ Ke7 $15) 39. Rd5 {[%emt 0:00:25]} Rg2 {[%emt 0:00:16]} 40. Re5+ {[%emt 0:00:09]} Kf7 {[%emt 0:00:08]} 41. Kf3 {[%emt 0:00:16]} (41. Rf5+ $11 Kg6 42. Be1) 41... Rcc2 {[%emt 0:00:11]} (41... Rgc2 $1 $15 42. Kg4 Rg6+ 43. Kf4 Nd4) 42. Rf1 {[%emt 0:00:08] Dancing on a razor blade.} h6 {[%emt 0:00:12]} (42... Rxb2 $2 43. Kg4+ Rgf2 44. Rxf2+ $18) 43. Kg4+ {[%emt 0:00:07]} Kg6 {[%emt 0:00:06]} 44. Re6+ {[%emt 0:00:02]} Kh7 {[%emt 0:00:00]} 45. Rf7 {[%emt 0:00:18] aiming for Ree7.} Rc5 {[%emt 0:00:22] [#]} (45... Rxb2 $2 46. Ree7 h5+ 47. Kh4 Rxg3 48. Kxg3 $18) (45... Kg8 $11 {keeps the balance.} 46. Ree7 h5+ 47. Kh4 g5+ 48. Kxh5 Rxg3 49. Rg7+ Kh8 50. Rh7+ Kg8 51. Rhg7+ Kh8 52. Rh7+ Kg8 53. Rhg7+) 46. h4 $1 $16 {[%emt 0:00:15] Black must now prevent Ree7. White is more active.} Rxb2 $2 {[%emt 0:00:12][%mdl 8192]} (46... Nc1 $16) 47. Ree7 $18 {[%emt 0:00:02]} h5+ {[%emt 0:00:05] [#]} 48. Kh3 $1 {[%emt 0:00:06]} Kg6 {[%emt 0:00:07]} (48... Rd2 $18 49. Rxg7+ Kh8 50. Rh7+ Kg8 51. Reg7+ Kf8 52. Ra7 Kg8 53. Rhb7 Rd8) 49. Rxg7+ {[%emt 0:00:04]} Kf6 {[%emt 0:00:00]} 50. Rgf7+ {[%emt 0:00:09]} (50. Ref7+ $142 Ke6 51. Rb7 Kf6 52. Rgf7+ Kg6 53. Rfd7 Rf2 54. Bxf2 Rf5 55. Rg7+ Kf6 56. Rgf7+ Ke5 57. exf5) 50... Kg6 {[%emt 0:00:02]} 51. Rg7+ {[%emt 0:00:01]} (51. Rb7 $18 Nd2 52. Rg7+ Kf6 53. Rgd7 Nxe4 54. Rb6+ Kf5 55. Rf7+ Nf6 56. Rfxf6+ Ke4 57. Rf4+ Ke3 58. Rfxb4 Rxb4 59. Rxb4) 51... Kf6 {[%emt 0:00:00]} 52. Ref7+ {[%emt 0:00:07]} Ke6 {[%emt 0:00:01]} 53. Rb7 {[%emt 0:00:18][%cal Rg7g6]} Kf6 {[%emt 0:00:22]} 54. Rgd7 {[%emt 0:00:13][%cal Rd7d6]} Rc6 {[%emt 0:00:18]} 55. Rh7 {[%emt 0:00:26][%cal Rh7h6]} Kg6 {[%emt 0:00:13]} 56. Be5 {[%emt 0:00:12][%csl Ge5,Gh7][%cal Rb7g7]} Rc3+ {[%emt 0:00:16]} 57. Bxc3 {[%emt 0:00:02]} bxc3 {[%emt 0:00:01][%mdl 4096] Endgame KRR-KRN} 58. Rhc7 {[%emt 0:00:08][%cal Rb7b6]} Nd4 {[%emt 0:00:35]} 59. Rxb2 {[%emt 0:00:09] White mates.} cxb2 {[%emt 0:00:02] KR-KN} 60. Rb7 {[%emt 0:00:02]} Ne2 {[%emt 0:00:18]} 61. Rxb2 {[%emt 0:00:02]} Nc3 {[%emt 0:00:02]} 62. Rb6+ {[%emt 0:00:04]} Kg7 {[%emt 0:00:01]} 63. e5 {[%emt 0:00:02][%cal Be4e5,Be5e6][%mdl 32]} Nd5 {[%emt 0:00:02]} 64. Rb5 {[%emt 0:00:10]} Nf4+ {[%emt 0:00:03]} 65. Kg3 {[%emt 0:00:03]} Ng6 {[%emt 0:00:06]} 66. Rb7+ {[%emt 0:00:24]} Kf8 {[%emt 0:00:12]} 67. e6 {[%emt 0:00:19]} Kg8 {[%emt 0:00:01]} 68. Kf3 {[%emt 0:00:26]} Kf8 {[%emt 0:00:18]} 69. Ke4 {[%emt 0:00:06]} Nxh4 {[%emt 0:00:02]} 70. Ke5 {[%emt 0:00:04] White used his chance.  Weighted Error Value: White=0.48/Black=0.56} 1-0

[Event "Chinese League Div-A Rapid 2022"]
[Site "Fuling,Chongqing"]
[Date "2022.09.12"]
[Round "6.27"]
[White "Li, Chao b"]
[Black "Wen, Yang"]
[Result "1/2-1/2"]
[ECO "B23"]
[WhiteElo "2679"]
[BlackElo "2588"]
[Annotator "TA"]
[PlyCount "38"]
[EventDate "2022.09.07"]
[EventType "team-tourn"]
[EventCountry "CHN"]
[SourceTitle "playchess.com"]
[Source "ChessBase"]
[SourceQuality "1"]
[TimeControl "1500+10"]

{[%evp 9,38,0,0,-14,46,36,52,22,47,0,0,0,0,0,0,0,0,0,0,0,0,0,0,0,0,0,0,0,0,0,0]} 1. e4 {[%emt 0:00:06]} c5 {[%emt 0:00:03]} 2. Nc3 {[%emt 0:00:41]} d6 {[%emt 0:00:36]} 3. d4 {[%emt 0:00:02]} cxd4 {[%emt 0:00:24]} 4. Qxd4 {[%emt 0:00:03]} Nc6 {[%emt 0:00:55]} 5. Qd2 {[%emt 0:00:02]} e6 {[%emt 0:03:04]} 6. b3 {[%emt 0:00:05] B23: Closed Sicilian: Lines without g3.} d5 {[%emt 0:04:20]} ({Black should try} 6... Be7 $11) 7. exd5 $14 {[%emt 0:03:27]} exd5 {[%emt 0:00:00] [#]} 8. Qxd5 $146 {[%emt 0:00:35] White is slightly better.} (8. Nxd5 $5 {[%cal Rc1b2]} Nf6 9. Ne3 $14) ({Predecessor:} 8. a3 Nf6 9. Bb2 d4 10. Nce2 Bc5 11. Nf3 O-O 12. Nexd4 Ne4 13. Qd3 Qa5+ 14. b4 Nxb4 15. axb4 Qxb4+ 16. Bc3 Nxc3 17. Be2 Re8 18. O-O Bxd4 19. Nxd4 Qxd4 {0-1 (19) Yang,K (2481)-Matlakov,M (2674) Chess.com INT 2022}) 8... Qf6 {[%emt 0:00:00]} 9. Bb2 {[%emt 0:03:45]} (9. Qd2 $14 {deserves consideration.}) 9... Ba3 $1 $11 {[%emt 0:00:00] The position is equal.} 10. O-O-O {[%emt 0:02:09]} Qxc3 $1 {[%emt 0:00:00]} 11. Bxa3 {[%emt 0:00:03] [#] Threatens to win with Bb2. The board is on fire.} Nf6 $1 {[%emt 0:00:00]} 12. Qc4 {[%emt 0:00:25]} Qa1+ {[%emt 0:00:45]} 13. Kd2 {[%emt 0:00:01]} Qxa2 {[%emt 0:00:14]} (13... Qe5 $2 14. Re1 Be6 {[#]} 15. Qxc6+ $3 {[%mdl 512]} bxc6 16. Rxe5 $18) 14. Re1+ {[%emt 0:00:13]} Be6 {[%emt 0:00:30]} 15. Rxe6+ {[%emt 0:00:02]} fxe6 {[%emt 0:00:06]} 16. Qxe6+ {[%emt 0:00:02]} Kd8 {[%emt 0:00:04]} 17. Qd6+ {[%emt 0:00:05]} Ke8 {[%emt 0:00:29]} 18. Qe6+ {[%emt 0:00:04]} Kd8 {[%emt 0:00:03]} 19. Qd6+ {[%emt 0:00:02]} Ke8 {[%emt 0:00:04] Weighted Error Value: White=0.08 (flawless) /Black=0.10 (very precise)} 1/2-1/2

[Event "Chinese League Div-A Rapid 2022"]
[Site "Fuling,Chongqing"]
[Date "2022.09.12"]
[Round "6.28"]
[White "Zhang, Di"]
[Black "Xu, Yinglun"]
[Result "1/2-1/2"]
[ECO "B40"]
[WhiteElo "2108"]
[BlackElo "2549"]
[Annotator "TA"]
[PlyCount "56"]
[EventDate "2022.09.07"]
[EventType "team-tourn"]
[EventCountry "CHN"]
[SourceTitle "playchess.com"]
[Source "ChessBase"]
[SourceQuality "1"]
[TimeControl "1500+10"]

{[%evp 9,56,-8,16,2,3,0,2,14,34,11,22,18,40,44,45,34,43,18,23,20,20,18,20,20,20,20,19,20,32,19,20,4,8,0,0,0,0,0,0,0,0,0,13,0,22,6,0,-14,-19]} 1. e4 {[%emt 0:00:02]} e6 {[%emt 0:00:08]} 2. Nf3 {[%emt 0:00:01]} d5 {[%emt 0:00:03]} 3. e5 {[%emt 0:00:02]} c5 {[%emt 0:00:08]} 4. c3 {[%emt 0:00:02]} Nc6 {[%emt 0:00:01]} 5. Na3 {[%emt 0:00:03]} d4 {[%emt 0:00:39]} (5... f6 $5 {[%cal Rf6e5]}) 6. Bd3 {[%emt 0:00:05] B40: Sicilian: 2...e6, Unusual lines.} Nge7 {[%emt 0:01:18]} 7. O-O {[%emt 0:00:05]} Ng6 {[%emt 0:00:11]} 8. Re1 {[%emt 0:00:10]} Be7 {[%emt 0:00:17]} 9. Nc4 {[%emt 0:00:22]} O-O {[%emt 0:01:24]} 10. Be4 {[%emt 0:00:10] [#]} Bd7 $146 {[%emt 0:00:34]} ({Predecessor:} 10... Qc7 11. a4 Rd8 12. d3 b6 13. h4 Bb7 14. h5 Nf8 15. h6 g6 16. Bg5 a6 {1-0 (29) Tregubov,P (2546)-Koziol,K (2276) Chess.com INT 2021}) 11. a4 {[%emt 0:00:07]} Rb8 {[%emt 0:02:45]} 12. d3 {[%emt 0:00:29]} b6 {[%emt 0:00:29]} 13. g3 {[%emt 0:05:53] With the idea h4.} a6 $1 {[%emt 0:01:22]} 14. h4 {[%emt 0:00:13]} b5 {[%emt 0:00:11]} 15. axb5 {[%emt 0:00:37]} axb5 {[%emt 0:00:03]} 16. h5 {[%emt 0:00:35]} bxc4 {[%emt 0:00:39]} 17. hxg6 {[%emt 0:00:02]} fxg6 {[%emt 0:03:09]} 18. dxc4 {[%emt 0:00:01]} dxc3 {[%emt 0:04:02]} 19. bxc3 {[%emt 0:00:01]} Qc7 {[%emt 0:00:02] The position is equal.} 20. Bf4 {[%emt 0:01:35]} Nd8 {[%emt 0:00:12]} 21. Bg5 {[%emt 0:04:45]} Bc6 {[%emt 0:02:03]} 22. Bxe7 {[%emt 0:01:04]} Qxe7 {[%emt 0:00:03]} 23. Qe2 {[%emt 0:00:25]} Bxe4 {[%emt 0:02:56]} 24. Qxe4 {[%emt 0:00:01]} Nf7 {[%emt 0:00:01]} 25. Re2 {[%emt 0:02:32]} Rb3 {[%emt 0:00:35]} 26. Rea2 {[%emt 0:02:55]} Qb7 {[%emt 0:02:35]} 27. Qxb7 {[%emt 0:00:50]} Rxb7 {[%emt 0:00:02]} 28. Rc2 {[%emt 0:00:49]} g5 {[%emt 0:00:12] Weighted Error Value: White=0.05 (flawless) /Black=0.04 (flawless)} 1/2-1/2

[Event "Chinese League Div-A Rapid 2022"]
[Site "Fuling,Chongqing"]
[Date "2022.09.12"]
[Round "6.29"]
[White "Li, Xueyi"]
[Black "Wang, Yu A."]
[Result "0-1"]
[ECO "A46"]
[WhiteElo "2280"]
[BlackElo "2271"]
[Annotator "NA RC"]
[PlyCount "84"]
[EventDate "2022.09.07"]
[EventType "team-tourn"]
[EventCountry "CHN"]
[SourceTitle "playchess.com"]
[Source "ChessBase"]
[SourceQuality "1"]
[TimeControl "1500+10"]

1. d4 {[%emt 0:00:02]} Nf6 {[%emt 0:00:01]} 2. Nf3 {[%emt 0:00:04]} d5 {[%emt 0:00:04]} 3. g3 {[%emt 0:00:01]} e6 {[%emt 0:00:01]} 4. Bg2 {[%emt 0:00:01]} b5 {[%emt 0:00:01]} 5. a4 {[%emt 0:00:10]} b4 {[%emt 0:00:22]} 6. O-O {[%emt 0:00:02]} Bb7 {[%emt 0:00:17]} 7. c4 {[%emt 0:00:02]} Be7 {[%emt 0:00:58]} 8. cxd5 {[%emt 0:00:14]} Bxd5 {[%emt 0:00:23]} 9. Nbd2 {[%emt 0:00:33]} O-O {[%emt 0:00:36]} 10. Qc2 {[%emt 0:00:11]} a5 {[%emt 0:02:20]} 11. e4 {[%emt 0:00:47]} Bb7 {[%emt 0:00:01]} 12. e5 {[%emt 0:00:08]} Nd5 {[%emt 0:00:09]} 13. Ne4 {[%emt 0:00:46]} h6 {[%emt 0:02:12]} 14. Bd2 {[%emt 0:00:29]} Nd7 {[%emt 0:00:55]} 15. Rac1 {[%emt 0:01:25]} c5 {[%emt 0:02:29]} 16. Nxc5 {[%emt 0:01:50]} Nxc5 {[%emt 0:00:32]} 17. dxc5 {[%emt 0:00:02]} Rc8 {[%emt 0:00:01]} 18. Qe4 {[%emt 0:00:25]} Bxc5 {[%emt 0:03:03]} 19. Qg4 {[%emt 0:00:38]} f5 {[%emt 0:01:13]} 20. Qg6 {[%emt 0:04:53]} Qe8 {[%emt 0:00:16]} 21. Qxe8 {[%emt 0:00:01]} Rfxe8 {[%emt 0:00:02]} 22. Rfd1 {[%emt 0:01:04]} Bb6 {[%emt 0:00:25]} 23. Be1 {[%emt 0:01:18]} Rxc1 {[%emt 0:00:57]} 24. Rxc1 {[%emt 0:00:02]} Rc8 {[%emt 0:00:03]} 25. Rxc8+ {[%emt 0:00:20]} Bxc8 {[%emt 0:00:01]} 26. Bf1 {[%emt 0:00:02]} Bd7 {[%emt 0:01:07]} 27. b3 {[%emt 0:00:07]} g5 {[%emt 0:00:34]} 28. Bd2 {[%emt 0:01:28]} Bc7 {[%emt 0:00:57]} 29. h3 {[%emt 0:01:18]} Kf7 {[%emt 0:00:07]} 30. g4 {[%emt 0:01:04]} Ne7 {[%emt 0:02:04]} 31. Bc1 {[%emt 0:00:46]} Ng6 {[%emt 0:01:19]} 32. Bb2 {[%emt 0:00:46]} fxg4 {[%emt 0:00:09]} 33. hxg4 {[%emt 0:00:03]} Bc6 {[%emt 0:00:02]} 34. Nd2 {[%emt 0:01:51]} Bxe5 {[%emt 0:00:22]} 35. Bc1 {[%emt 0:00:01]} Bf4 {[%emt 0:00:21]} 36. Be2 {[%emt 0:00:01]} Bd5 {[%emt 0:00:53]} 37. Kf1 {[%emt 0:00:09]} Bxd2 {[%emt 0:00:23]} 38. Bxd2 {[%emt 0:00:01]} Bxb3 {[%emt 0:00:01]} 39. Bb5 {[%emt 0:00:02]} Nf4 {[%emt 0:00:42]} 40. Be3 {[%emt 0:01:01]} Nd5 {[%emt 0:00:02]} 41. Bd4 {[%emt 0:00:06]} Nc3 {[%emt 0:00:08]} 42. Bb6 {[%emt 0:00:20]} Bxa4 {[%emt 0:00:30]} 0-1

[Event "Chinese League Div-A Rapid 2022"]
[Site "Fuling,Chongqing"]
[Date "2022.09.12"]
[Round "6.30"]
[White "Song, Yuxin"]
[Black "Li, Ruofan"]
[Result "1/2-1/2"]
[ECO "C93"]
[WhiteElo "2317"]
[BlackElo "2302"]
[Annotator "TA"]
[PlyCount "130"]
[EventDate "2022.09.07"]
[EventType "team-tourn"]
[EventCountry "CHN"]
[SourceTitle "playchess.com"]
[Source "ChessBase"]
[SourceQuality "1"]
[TimeControl "1500+10"]

{[%evp 37,130,18,20,16,17,15,23,14,28,11,43,43,43,42,38,41,56,44,61,0,68,0,20,12,20,4,5,0,8,-66,-66,-66,-60,-70,-54,-62,-56,-60,-56,-54,-54,-56,0,-71,-74,-80,-79,-80,-58,-63,-45,-78,-45,-66,-63,-75,-61,-113,-86,-111,-102,-103,-68,-72,-75,-96,-45,-96,-76,-77,-45,-68,-68,-96,-46,-96,-88,-83,-46,-68,0,0,0,0,0,0,0,0,0,0,0,0,0,0,0]} 1. e4 {[%emt 0:00:10]} e5 {[%emt 0:00:03]} 2. Nf3 {[%emt 0:00:00]} Nc6 {[%emt 0:00:02]} 3. Bb5 {[%emt 0:00:00]} a6 {[%emt 0:00:01]} 4. Ba4 {[%emt 0:00:00]} Nf6 {[%emt 0:00:02]} 5. O-O {[%emt 0:00:00]} Be7 {[%emt 0:00:01]} 6. Re1 {[%emt 0:00:00]} b5 {[%emt 0:00:02]} 7. Bb3 {[%emt 0:00:00]} d6 {[%emt 0:00:01]} 8. c3 {[%emt 0:00:01]} O-O {[%emt 0:00:02]} 9. h3 {[%emt 0:00:02]} Bb7 {[%emt 0:00:01]} 10. d4 {[%emt 0:00:02]} Re8 {[%emt 0:00:01]} 11. Ng5 {[%emt 0:00:02]} Rf8 {[%emt 0:00:01]} 12. Nf3 {[%emt 0:00:01]} Re8 {[%emt 0:00:01]} 13. Ng5 {[%emt 0:01:10]} Rf8 {[%emt 0:00:02]} 14. Nf3 {[%emt 0:00:01]} Re8 {[%emt 0:00:31]} 15. Nbd2 {[%emt 0:00:06]} Bf8 {[%emt 0:00:04]} 16. a3 {[%emt 0:00:02]} h6 {[%emt 0:00:02]} 17. Bc2 {[%emt 0:00:02]} Nb8 {[%emt 0:00:05][%cal Bc6b8,Bb8d7,Bd7b6][%mdl 32]} 18. b4 {[%emt 0:00:24] 18.a4 is the modern continuation.} a5 {[%emt 0:03:37]} 19. Bb2 {[%emt 0:00:33]} Nbd7 {[%emt 0:00:15]} 20. Bd3 {[%emt 0:05:44] C93: Closed Ruy Lopez: Smyslov Variation.} c6 {[%emt 0:01:27] [#]} 21. Qb3 $146 {[%emt 0:03:08]} ({Predecessor:} 21. Nb3 axb4 22. cxb4 exd4 23. Nfxd4 c5 24. Nxb5 Nxe4 25. Na5 Rxa5 26. bxa5 Ndf6 27. Bxf6 Qxf6 28. Qc2 d5 29. Nc7 Re7 30. a6 Rxc7 31. axb7 Rxb7 32. Bxe4 Rb2 33. Bh7+ Kh8 34. Qf5 {1-0 (30) Robson,R (2670)-Gozzoli,Y (2604) chess24.com INT 2020}) 21... Qc7 {[%emt 0:02:23]} 22. Rac1 {[%emt 0:02:32] White has an edge.} axb4 {[%emt 0:00:22]} 23. axb4 {[%emt 0:00:09]} Nb6 {[%emt 0:03:06]} 24. dxe5 {[%emt 0:00:13]} dxe5 {[%emt 0:00:04]} 25. c4 {[%emt 0:00:00]} bxc4 {[%emt 0:01:13]} 26. Nxc4 {[%emt 0:00:02]} Nxc4 {[%emt 0:00:01]} 27. Bxc4 {[%emt 0:00:33]} Rab8 {[%emt 0:04:45]} 28. Qa4 {[%emt 0:04:12]} (28. Bc3 $14) 28... Nd7 {[%emt 0:01:41]} ({Black should try} 28... Ra8 $11 29. Qb3 Rab8) 29. Qb3 {[%emt 0:00:55] White is much more active.} (29. Red1 $14) 29... Nb6 {[%emt 0:00:24]} 30. Bf1 {[%emt 0:00:47]} Bc8 {[%emt 0:00:30]} 31. b5 {[%emt 0:01:12]} c5 {[%emt 0:01:08]} 32. Nd2 {[%emt 0:01:32]} Be6 {[%emt 0:00:13]} 33. Nc4 {[%emt 0:00:49]} (33. Qg3 $11 f6 34. Bd4) 33... Nxc4 $15 {[%emt 0:00:58]} 34. Bxc4 {[%emt 0:00:01]} Bxc4 {[%emt 0:00:02]} 35. Qxc4 {[%emt 0:00:15]} Qb6 {[%emt 0:00:12]} 36. Ba3 {[%emt 0:00:16][%cal Ra3c5]} Qa5 $1 {[%emt 0:03:10]} 37. Re3 {[%emt 0:01:29]} Rxb5 {[%emt 0:00:28]} 38. Rf3 {[%emt 0:00:01]} Rb7 {[%emt 0:00:16]} 39. Qd5 {[%emt 0:00:14]} Qb5 {[%emt 0:00:53]} (39... Rc7 $15) 40. Rfc3 {[%emt 0:01:53]} (40. Bxc5 $11 {keeps the balance.} Rd7 41. Qb3) 40... Rd7 $17 {[%emt 0:00:04]} 41. Qc4 {[%emt 0:00:01]} Qxc4 {[%emt 0:00:02]} (41... Qc6 {is interesting.} 42. Bxc5 Bxc5 43. Qxc5 Qxe4 44. Re3 Qf5) 42. Rxc4 {[%emt 0:00:01]} Rc8 {[%emt 0:00:05]} 43. Kf1 {[%emt 0:00:16]} ({Avoid the trap} 43. Bxc5 $2 Rdc7 44. Bxf8 Rxc4 45. Rxc4 Rxc4 $19) 43... f6 {[%emt 0:00:13]} 44. Ke2 {[%emt 0:00:02]} ({Don't blunder} 44. Bxc5 $2 Rdc7 45. g4 Bxc5 $19) 44... Kf7 {[%emt 0:00:04]} 45. R4c3 {[%emt 0:00:30][%cal Ra3c5]} Rdc7 {[%emt 0:00:06]} 46. Rc4 {[%emt 0:00:21]} Ke6 {[%emt 0:00:17]} 47. Kd3 {[%emt 0:00:24]} (47. Ra4 $15) 47... Be7 {[%emt 0:00:02]} 48. f3 {[%emt 0:00:19]} Rd8+ {[%emt 0:00:37]} 49. Ke2 {[%emt 0:00:44]} h5 {[%emt 0:00:48]} 50. R4c3 {[%emt 0:00:05][%cal Ra3c5]} Rdc8 {[%emt 0:00:10]} 51. Rc4 {[%emt 0:00:01]} h4 {[%emt 0:00:08]} ({Black should play} 51... Ra7 $17 52. R4c3 Ra5) 52. Kd3 {[%emt 0:00:01]} ({Better is} 52. Bb4 $15) 52... Rd8+ {[%emt 0:00:01]} 53. Ke2 {[%emt 0:00:01]} g5 {[%emt 0:00:33]} 54. R4c3 {[%emt 0:00:02][%cal Ra3c5]} Rdc8 $1 {[%emt 0:00:01]} 55. Rc4 {[%emt 0:00:03][%cal Oa3b4]} Rc6 {[%emt 0:00:24]} (55... Ra7 $17 56. R1c3 Bd6) 56. Kd3 {[%emt 0:00:11]} (56. Bb4 $15) 56... Rd8+ {[%emt 0:00:02]} 57. Ke2 {[%emt 0:00:01]} Rd4 {[%emt 0:00:06]} 58. R4c2 {[%emt 0:00:07][%cal Ra3c5]} c4 {[%emt 0:00:05]} (58... Rd7 $1 $15) 59. Bb2 $11 {[%emt 0:00:03] The position is equal.} Rd7 {[%emt 0:01:23]} 60. Rxc4 {[%emt 0:00:03]} Rxc4 {[%emt 0:00:01]} 61. Rxc4 {[%emt 0:00:01] KRB-KRB} Rb7 {[%emt 0:00:02]} 62. Rc6+ {[%emt 0:00:06]} Kd7 {[%emt 0:00:04]} 63. Rc2 {[%emt 0:00:01]} Rb3 {[%emt 0:00:02]} 64. Bc1 {[%emt 0:00:08]} Bb4 {[%emt 0:00:13]} 65. Bd2 {[%emt 0:00:06]} Bxd2 {[%emt 0:00:17] Weighted Error Value: White=0.20 (precise) /Black=0.16 (very precise)} 1/2-1/2

[Event "Chinese League Div-A Rapid 2022"]
[Site "Fuling,Chongqing"]
[Date "2022.09.14"]
[Round "7.1"]
[White "Ni, Hua"]
[Black "Li, Chao b"]
[Result "1/2-1/2"]
[ECO "C42"]
[WhiteElo "2668"]
[BlackElo "2679"]
[Annotator "TA"]
[PlyCount "46"]
[EventDate "2022.09.07"]
[EventType "team-tourn"]
[EventCountry "CHN"]
[SourceTitle "playchess.com"]
[Source "ChessBase"]
[SourceQuality "1"]
[TimeControl "1500+10"]

{[%evp 15,46,23,31,27,31,15,46,0,0,21,22,14,16,10,11,8,11,8,18,0,14,0,0,0,0,0,0,0,7,0,0,0,0]} 1. e4 {[%emt 0:00:04]} e5 {[%emt 0:00:20]} 2. Nf3 {[%emt 0:00:03]} Nf6 {[%emt 0:00:05]} 3. Nxe5 {[%emt 0:00:10]} d6 {[%emt 0:00:01]} 4. Nf3 {[%emt 0:00:01]} Nxe4 {[%emt 0:00:02]} 5. Nc3 {[%emt 0:00:02]} Nxc3 {[%emt 0:00:03]} 6. dxc3 {[%emt 0:00:02]} Nc6 {[%emt 0:00:02]} 7. Be3 {[%emt 0:00:03]} Be7 {[%emt 0:00:05]} 8. Qd2 {[%emt 0:00:02]} Be6 {[%emt 0:00:03] 8...Bf5 gains popularity.} 9. O-O-O {[%emt 0:00:03] C42: Petroff Defence: 3 Nxe5 and unusual White 3rd moves.} Qd7 {[%emt 0:00:02]} (9... Bxa2 $2 10. b3 $18) 10. Kb1 {[%emt 0:00:10]} a6 {[%emt 0:00:08]} 11. Ng5 {[%emt 0:00:06] White is slightly better.} Bxg5 {[%emt 0:00:07] The position is equal.} 12. Bxg5 {[%emt 0:00:02]} f6 {[%emt 0:00:03]} 13. Be3 {[%emt 0:00:06]} O-O-O {[%emt 0:00:09]} 14. f3 {[%emt 0:00:05]} Rde8 {[%emt 0:00:17][%cal Oe6a2]} 15. Bf2 {[%emt 0:00:03]} h5 {[%emt 0:00:08] [#]} 16. h4 $146 {[%emt 0:00:08]} ({Predecessor:} 16. b3 h4 17. h3 Bf5 18. Bc4 g5 19. Rhe1 Rxe1 20. Rxe1 Re8 21. f4 Rxe1+ 22. Bxe1 {1-0 (40) Pap,M (2491)-Estremera Panos,S (2362) Pontevedra 2017}) 16... Re7 {[%emt 0:00:29]} 17. Re1 {[%emt 0:00:10]} Rhe8 {[%emt 0:00:05][%cal Oe6a2]} 18. Bd3 {[%emt 0:00:07]} Bf5 {[%emt 0:00:19]} 19. Rxe7 {[%emt 0:00:04]} Rxe7 {[%emt 0:00:02]} 20. Bc4 {[%emt 0:00:17]} Be6 {[%emt 0:00:03]} 21. Bd3 {[%emt 0:00:02]} Bf5 {[%emt 0:01:00]} 22. Bc4 {[%emt 0:00:02]} Be6 {[%emt 0:00:06]} 23. Bd3 {[%emt 0:00:04]} Bf5 {[%emt 0:00:11] Not much happened in this game.  Weighted Error Value: White=0.06 (flawless) /Black=0.04 (flawless)} 1/2-1/2